[Event "WSCC 50 Women 2017"]
[Site "?"]
[Date "2017.11.14"]
[Round "6"]
[White "Berend, Elvira"]
[Black "Lauterbach, Ingrid"]
[Result "1-0"]
[ECO "C74"]
[WhiteElo "2292"]
[BlackElo "2007"]
[PlyCount "159"]
[EventDate "2017.??.??"]
[EventType "swiss"]
[EventCountry "ITA"]
[SourceTitle "Acqui Terme"]
[TimeControl "40/5400+30:1800+30"]
[WhiteClock "0:04:37"]
[BlackClock "0:04:05"]

1. e4 {[%emt 0:00:00]} e5 {[%emt 0:00:29]} 2. Nf3 {[%emt 0:00:00]} Nc6 {[%emt 0:00:09]} 3. Bb5 {[%emt 0:00:13]} a6 {[%emt 0:00:37]} 4. Ba4 {[%emt 0:00:32]} d6 {[%emt 0:02:38]} 5. c3 {[%emt 0:01:17]} b5 {[%emt 0:01:58]} 6. Bc2 {[%emt 0:01:59]} Nge7 {[%emt 0:02:51]} 7. d4 {[%emt 0:02:11]} Bb7 {[%emt 0:03:27]} 8. a4 {[%emt 0:04:04]} Ng6 {[%emt 0:05:18]} 9. d5 {[%emt 0:02:12]} Nb8 {[%emt 0:01:26]} 10. Bd3 {[%emt 0:02:10]} bxa4 {[%emt 0:01:58]} 11. Qxa4+ {[%emt 0:02:10]} Nd7 {[%emt 0:04:42]} 12. g3 {[%emt 0:04:05]} Be7 {[%emt 0:01:41]} 13. O-O {[%emt 0:02:47]} O-O {[%emt 0:00:38]} 14. Qd1 {[%emt 0:00:19]} Nc5 {[%emt 0:06:55]} 15. Bc2 {[%emt 0:00:57]} a5 {[%emt 0:01:05]} 16. Be3 {[%emt 0:02:55]} c6 {[%emt 0:04:13]} 17. c4 {[%emt 0:07:29]} Na6 {[%emt 0:03:12]} 18. Qd2 {[%emt 0:05:33]} Nb4 {[%emt 0:01:10]} 19. Bd1 {[%emt 0:00:18]} cxd5 {[%emt 0:11:03]} 20. cxd5 {[%emt 0:00:09]} Ba6 {[%emt 0:00:48]} 21. Be2 {[%emt 0:00:10]} Bxe2 {[%emt 0:00:31]} 22. Qxe2 {[%emt 0:00:06]} f5 {[%emt 0:00:32]} 23. exf5 {[%emt 0:00:45]} Rxf5 {[%emt 0:00:47]} 24. Nc3 {[%emt 0:00:13]} Qf8 {[%emt 0:04:03]} 25. Nd2 {[%emt 0:07:42]} Nc2 {[%emt 0:11:22]} 26. Ra4 {[%emt 0:00:19]} Nxe3 {[%emt 0:04:52]} 27. Qxe3 {[%emt 0:02:21]} Bg5 {[%emt 0:04:26]} 28. Qe2 {[%emt 0:00:18]} Bxd2 {[%emt 0:01:01]} 29. Qxd2 {[%emt 0:00:06]} Rf3 {[%emt 0:09:55]} 30. Rfa1 {[%emt 0:05:46]} Qf5 {[%emt 0:01:13]} 31. Ne4 {[%emt 0:00:55]} Rf8 {[%emt 0:01:57]} 32. Re1 {[%emt 0:02:56]} Ra8 {[%emt 0:04:47]} 33. Rxa5 {[%emt 0:01:44]} Rxa5 {[%emt 0:00:05]} 34. Qxa5 {[%emt 0:00:06]} Qg4 {[%emt 0:00:25]} 35. Qd8+ {[%emt 0:15:49]} Rf8 {[%emt 0:00:13]} 36. Qg5 {[%emt 0:01:06]} Qf3 {[%emt 0:00:25]} 37. h4 {[%emt 0:05:47]} Qb3 {[%emt 0:01:29]} 38. h5 {[%emt 0:00:21]} Qb4 {[%emt 0:00:14]} 39. Re3 {[%emt 0:01:24]} Nh8 {[%emt 0:04:45]} 40. h6 {[%emt 0:02:55]} Ng6 {[%emt 0:30:38]} 41. Qg4 {[%emt 0:30:41]} Qxb2 {[%emt 0:00:00]} 42. Qe6+ {[%emt 0:00:00]} Rf7 {[%emt 0:00:00]} 43. hxg7 {[%emt 0:00:29]} Kxg7 {[%emt 0:00:00]} 44. Qxd6 {[%emt 0:00:48]} Ne7 {[%emt 0:00:00]} 45. Qd8 {[%emt 0:05:45]} h6 {[%emt 0:00:00]} 46. Qa5 {[%emt 0:04:22]} Nf5 {[%emt 0:00:00]} 47. Qc3 {[%emt 0:00:39]} Qb8 {[%emt 0:00:00]} 48. Re1 {[%emt 0:00:23]} Nd4 {[%emt 0:00:00]} 49. Kg2 {[%emt 0:01:31]} Qb7 {[%emt 0:00:00]} 50. Qc5 {[%emt 0:01:03]} Qd7 {[%emt 0:00:04]} 51. d6 {[%emt 0:02:01]} Qf5 {[%emt 0:00:29]} 52. f4 {[%emt 0:00:20]} exf4 {[%emt 0:04:02]} 53. Qxd4+ {[%emt 0:00:15]} Kg6 {[%emt 0:01:03]} 54. Nd2 {[%emt 0:03:36]} f3+ {[%emt 0:01:17]} 55. Kf2 {[%emt 0:00:20]} Qh3 {[%emt 0:00:25]} 56. Qe4+ {[%emt 0:00:20]} Kg7 {[%emt 0:00:14]} 57. Qe5+ {[%emt 0:00:26]} Kg8 {[%emt 0:00:24]} 58. Nxf3 {[%emt 0:01:02]} Qh2+ {[%emt 0:00:12]} 59. Ke3 {[%emt 0:00:11]} Qc2 {[%emt 0:00:21]} 60. Nd2 {[%emt 0:00:49]} Qa4 {[%emt 0:00:27]} 61. Ra1 {[%emt 0:00:51]} Qc6 {[%emt 0:00:28]} 62. Rb1 {[%emt 0:01:17]} Rf8 {[%emt 0:00:29]} 63. Ne4 {[%emt 0:00:39]} Qa8 {[%emt 0:00:35]} 64. Qe6+ {[%emt 0:00:28]} Kg7 {[%emt 0:00:14]} 65. Qe7+ {[%emt 0:00:05]} Rf7 {[%emt 0:00:16]} 66. Qe5+ {[%emt 0:00:05]} Kg8 {[%emt 0:00:17]} 67. Rc1 {[%emt 0:01:28]} Qa3+ {[%emt 0:00:37]} 68. Qc3 {[%emt 0:00:10]} Qa7+ {[%emt 0:01:12]} 69. Qc5 {[%emt 0:00:04]} Qa2 {[%emt 0:00:16]} 70. Qc8+ {[%emt 0:00:18]} Rf8 {[%emt 0:00:16]} 71. Qc4+ {[%emt 0:00:07]} Qxc4 {[%emt 0:00:18]} 72. Rxc4 {[%emt 0:00:04]} Kf7 {[%emt 0:00:03]} 73. Rc7+ {[%emt 0:00:09]} Ke6 {[%emt 0:00:10]} 74. Rh7 {[%emt 0:00:10]} Rg8 {[%emt 0:00:22]} 75. Kd4 {[%emt 0:00:52]} Ra8 {[%emt 0:00:25]} 76. Rxh6+ {[%emt 0:00:15]} Kd7 {[%emt 0:00:05]} 77. Nc5+ {[%emt 0:00:09]} Kc6 {[%emt 0:00:12]} 78. d7+ {[%emt 0:00:22]} Kc7 {[%emt 0:00:05]} 79. Re6 {[%emt 0:00:19]} Ra1 {[%emt 0:00:39]} 80. Re8 {[%emt 0:00:21]} 1-0

[Event "WSCC 50 Women 2017"]
[Site "?"]
[Date "2017.11.14"]
[Round "6"]
[White "Strutinskaia, Galina"]
[Black "Kasoshvili, Tsiala"]
[Result "1-0"]
[ECO "A41"]
[WhiteElo "2246"]
[BlackElo "2097"]
[PlyCount "191"]
[EventDate "2017.??.??"]
[EventType "swiss"]
[EventCountry "ITA"]
[SourceTitle "Acqui Terme"]
[TimeControl "40/5400+30:1800+30"]

1. d4 g6 2. c4 Bg7 3. Nc3 d6 4. Nf3 Nd7 5. e4 c6 6. Be2 e5 7. Be3 Ngf6 8. O-O O-O 9. h3 h6 10. Qc2 exd4 11. Nxd4 Re8 12. Rfe1 Nc5 13. Bf3 Qe7 14. Rad1 Kh7 15. Bf4 Ncd7 16. b3 Ne5 17. Be2 Nfd7 18. Bc1 Nc5 19. b4 Ne6 20. Nb3 Qf6 21. c5 dxc5 22. bxc5 Nf4 23. Qd2 Nxe2+ 24. Qxe2 Nf3+ 25. Qxf3 Qxf3 26. gxf3 Bxc3 27. Re3 Be5 28. Red3 Bc7 29. Rd7 Bxd7 30. Rxd7 Rac8 31. Rxf7+ Kg8 32. Rd7 Red8 33. Re7 g5 34. Bb2 Re8 35. Rg7+ Kf8 36. Rh7 a5 37. a4 Kg8 38. Rh8+ Kf7 39. Rxh6 b6 40. Rh7+ Kf8 41. cxb6 Bxb6 42. Nd2 Rcd8 43. Nc4 Bd4 44. Bc1 Bf6 45. Be3 Kg8 46. Rc7 Re6 47. Kg2 Rb8 48. Nxa5 Rb4 49. Nb7 Be7 50. a5 Ra4 51. Bc5 Bf6 52. Bb6 Ra2 53. Rd7 Be7 54. Be3 Kf8 55. Rc7 Ke8 56. Bb6 Bb4 57. Rc8+ Kd7 58. Rd8+ Ke7 59. Rg8 Bd2 60. Ra8 Re5 61. Nd8 Rb5 62. Ra7+ Kd6 63. Nf7+ Ke6 64. Nd8+ Kd6 65. Rg7 Bxa5 66. Nb7+ Ke6 67. Bxa5 Raxa5 68. Nxa5 Rxa5 69. Kg3 Rb5 70. f4 gxf4+ 71. Kxf4 c5 72. Rg5 Kd6 73. h4 Rb2 74. Rg6+ Kd7 75. Ke3 Rb3+ 76. Kf4 c4 77. h5 Rh3 78. f3 Rxh5 79. Ke3 Rh2 80. Kd4 Rf2 81. Rf6 Rc2 82. f4 c3 83. e5 Rc1 84. Kd3 Ke7 85. Rc6 Re1 86. Rxc3 Ke6 87. Rc6+ Kd7 88. Ra6 Ke7 89. Kd4 Re2 90. Kd5 Kf7 91. Ra7+ Kg6 92. Ke6 Rf2 93. Rf7 Ra2 94. f5+ Kh6 95. Rd7 Kg5 96. f6 1-0

[Event "WSCC 50 Women 2017"]
[Site "?"]
[Date "2017.11.14"]
[Round "6"]
[White "Liu, Shilan"]
[Black "Bogumil, Tatiana"]
[Result "0-1"]
[ECO "B06"]
[WhiteElo "2054"]
[BlackElo "2124"]
[PlyCount "112"]
[EventDate "2017.??.??"]
[EventType "swiss"]
[EventCountry "ITA"]
[SourceTitle "Acqui Terme"]
[TimeControl "40/5400+30:1800+30"]
[WhiteClock "0:26:33"]
[BlackClock "0:09:44"]

1. e4 {[%emt 0:00:00]} g6 {[%emt 0:00:25]} 2. d4 {[%emt 0:00:00]} Bg7 {[%emt 0:00:44]} 3. Nf3 {[%emt 0:00:08]} d6 {[%emt 0:00:26]} 4. Nc3 {[%emt 0:00:25]} c6 {[%emt 0:02:12]} 5. a4 {[%emt 0:00:07]} a5 {[%emt 0:01:01]} 6. Be2 {[%emt 0:00:08]} Nf6 {[%emt 0:01:43]} 7. O-O {[%emt 0:00:09]} O-O {[%emt 0:00:33]} 8. Be3 {[%emt 0:02:22]} h6 {[%emt 0:04:37]} 9. h3 {[%emt 0:00:59]} Na6 {[%emt 0:01:37]} 10. Nd2 {[%emt 0:06:22]} Nd7 {[%emt 0:13:27]} 11. f4 {[%emt 0:01:20]} c5 {[%emt 0:02:14]} 12. d5 {[%emt 0:00:27]} Nb6 {[%emt 0:05:49]} 13. Nc4 {[%emt 0:01:32]} Nxc4 {[%emt 0:13:01]} 14. Bxc4 {[%emt 0:00:03]} Kh7 {[%emt 0:02:21]} 15. Qd2 {[%emt 0:03:59]} Qb6 {[%emt 0:18:16]} 16. Nb5 {[%emt 0:05:41]} Nc7 {[%emt 0:01:56]} 17. c3 {[%emt 0:12:59]} Bd7 {[%emt 0:01:39]} 18. Ra3 {[%emt 0:09:33]} Nxb5 {[%emt 0:08:15]} 19. Bxb5 {[%emt 0:00:53]} Bxb5 {[%emt 0:03:29]} 20. Rb3 {[%emt 0:00:09]} Qc7 {[%emt 0:01:45]} 21. Rxb5 {[%emt 0:00:02]} b6 {[%emt 0:00:30]} 22. c4 {[%emt 0:02:13]} Qd7 {[%emt 0:03:36]} 23. Rf3 {[%emt 0:09:11]} Rab8 {[%emt 0:02:47]} 24. f5 {[%emt 0:06:39]} Qe8 {[%emt 0:05:26]} 25. Bf2 {[%emt 0:00:47]} Be5 {[%emt 0:01:05]} 26. Qc2 {[%emt 0:02:48]} f6 {[%emt 0:01:35]} 27. Rfb3 {[%emt 0:01:15]} gxf5 {[%emt 0:01:37]} 28. exf5 {[%emt 0:00:25]} Qh5 {[%emt 0:00:12]} 29. Qd3 {[%emt 0:06:25]} Rg8 {[%emt 0:00:20]} 30. Qf3 {[%emt 0:00:06]} Qg5 {[%emt 0:00:49]} 31. Be3 {[%emt 0:00:48]} Qh4 {[%emt 0:00:16]} 32. g4 {[%emt 0:08:37]} Qe1+ {[%emt 0:00:54]} 33. Kg2 {[%emt 0:01:09]} Qb1 {[%emt 0:00:33]} 34. Bf2 {[%emt 0:02:18]} Qa1 {[%emt 0:01:35]} 35. Rxb6 {[%emt 0:00:50]} Rxb6 {[%emt 0:00:15]} 36. Rxb6 {[%emt 0:00:07]} Qxa4 {[%emt 0:00:29]} 37. b3 {[%emt 0:00:23]} Qa2 {[%emt 0:00:16]} 38. Rb7 {[%emt 0:00:22]} Rg7 {[%emt 0:00:21]} 39. Kf1 {[%emt 0:05:57]} a4 {[%emt 0:00:14]} 40. g5 {[%emt 0:05:13]} Qb1+ {[%emt 0:30:47]} 41. Be1 {[%emt 0:31:58]} fxg5 {[%emt 0:00:49]} 42. f6 {[%emt 0:02:17]} Bxf6 {[%emt 0:00:59]} 43. b4 {[%emt 0:02:14]} Rf7 {[%emt 0:00:00]} 44. Ke2 {[%emt 0:00:00]} Qc2+ {[%emt 0:00:00]} 45. Bd2 {[%emt 0:00:00]} Qxc4+ {[%emt 0:00:00]} 46. Qd3+ {[%emt 0:00:00]} Qxd3+ {[%emt 0:00:00]} 47. Kxd3 {[%emt 0:00:00]} cxb4 {[%emt 0:00:00]} 48. Bxb4 {[%emt 0:00:00]} Kg6 {[%emt 0:00:00]} 49. Ra7 {[%emt 0:00:00]} Be5 {[%emt 0:00:00]} 50. Rxa4 {[%emt 0:00:00]} Rf3+ {[%emt 0:00:00]} 51. Ke2 {[%emt 0:00:00]} Rxh3 {[%emt 0:00:00]} 52. Be1 {[%emt 0:00:00]} Rb3 {[%emt 0:00:00]} 53. Ra7 {[%emt 0:00:00]} Bf6 {[%emt 0:00:00]} 54. Ra2 {[%emt 0:00:00]} Kf5 {[%emt 0:00:00]} 55. Kf1 {[%emt 0:00:00]} Rd3 {[%emt 0:00:00]} 56. Rh2 {[%emt 0:00:00]} Ke5 0-1

[Event "WSCC 50 Women 2017"]
[Site "?"]
[Date "2017.11.15"]
[Round "7"]
[White "Bogumil, Tatiana"]
[Black "Strutinskaia, Galina"]
[Result "1/2-1/2"]
[ECO "B90"]
[WhiteElo "2124"]
[BlackElo "2246"]
[PlyCount "20"]
[EventDate "2017.??.??"]
[EventType "swiss"]
[EventCountry "ITA"]
[SourceTitle "Acqui Terme"]
[TimeControl "40/5400+30:1800+30"]
[WhiteClock "1:04:02"]
[BlackClock "1:21:52"]

1. e4 {[%emt 0:00:00]} c5 {[%emt 0:00:03]} 2. Nf3 {[%emt 0:00:00]} d6 {[%emt 0:00:28]} 3. d4 {[%emt 0:01:20]} Nf6 4. Nc3 {[%emt 0:03:40]} cxd4 {[%emt 0:00:42]} 5. Nxd4 {[%emt 0:00:17]} a6 {[%emt 0:00:04]} 6. a4 {[%emt 0:06:38]} e5 {[%emt 0:01:14]} 7. Nb3 {[%emt 0:01:35]} Be7 {[%emt 0:01:58]} 8. Bg5 {[%emt 0:03:58]} Nbd7 {[%emt 0:05:16]} 9. Be2 {[%emt 0:09:26]} O-O {[%emt 0:00:59]} 10. O-O {[%emt 0:04:04]} Qc7 {[%emt 0:02:54]} 1/2-1/2

[Event "WSCC 50 Women 2017"]
[Site "?"]
[Date "2017.11.15"]
[Round "7"]
[White "Kasoshvili, Tsiala"]
[Black "Liu, Shilan"]
[Result "0-1"]
[ECO "A40"]
[WhiteElo "2097"]
[BlackElo "2054"]
[PlyCount "110"]
[EventDate "2017.??.??"]
[EventType "swiss"]
[EventCountry "ITA"]
[SourceTitle "Acqui Terme"]
[TimeControl "40/5400+30:1800+30"]

1. d4 e6 2. Nf3 Nf6 3. g3 d5 4. Bg2 c5 5. O-O cxd4 6. Nxd4 e5 7. Nb3 Be6 8. c3 Be7 9. Be3 O-O 10. Bc5 Nc6 11. a4 Rc8 12. Na3 b6 13. Bxe7 Qxe7 14. Nc1 Rfd8 15. Nd3 e4 16. Nf4 d4 17. Nxe6 Qxe6 18. Qc1 Na5 19. Qc2 d3 20. exd3 exd3 21. Qd1 Nb3 22. Rb1 d2 23. Bf3 h5 24. Qe2 Qf5 25. Qb5 Qxf3 26. Qxb3 h4 27. Qd1 Qc6 28. Nc2 h3 29. f3 Qxa4 30. Rf2 b5 31. Rxd2 Rxd2 32. Qxd2 Qa2 33. Qd1 Qc4 34. Qf1 Qc5+ 35. Qf2 Qf5 36. Rd1 a5 37. Nd4 Qc5 38. Ne2 Qf5 39. Nd4 Qd7 40. Re1 b4 41. cxb4 axb4 42. g4 g6 43. Nc2 Nxg4 44. Qd4 Qf5 45. Nxb4 Qxf3 46. Qd2 Nf6 47. Nd3 Qg4+ 48. Kh1 Rd8 49. Re3 Ne4 50. Qc2 Rd5 51. Ne1 Rf5 52. Qc8+ Kg7 53. Rf3 Qh4 54. Qc1 Rxf3 55. Nxf3 Qf2 0-1

[Event "WSCC 50 Women 2017"]
[Site "?"]
[Date "2017.11.15"]
[Round "7"]
[White "Xu, Yaping"]
[Black "Berend, Elvira"]
[Result "0-1"]
[ECO "B22"]
[WhiteElo "2081"]
[BlackElo "2292"]
[PlyCount "56"]
[EventDate "2017.??.??"]
[EventType "swiss"]
[EventCountry "ITA"]
[SourceTitle "Acqui Terme"]
[TimeControl "40/5400+30:1800+30"]
[WhiteClock "0:23:16"]
[BlackClock "0:43:45"]

1. e4 {[%emt 0:00:00]} c5 {[%emt 0:00:09]} 2. c3 d5 {[%emt 0:04:07]} 3. exd5 {[%emt 0:00:58]} Qxd5 {[%emt 0:00:05]} 4. d4 {[%emt 0:00:22]} e6 {[%emt 0:02:17]} 5. Nf3 {[%emt 0:02:23]} Nf6 {[%emt 0:03:11]} 6. Bd3 {[%emt 0:02:45]} Be7 {[%emt 0:04:42]} 7. c4 {[%emt 0:04:03]} Qd8 {[%emt 0:00:09]} 8. dxc5 {[%emt 0:00:29]} Bxc5 {[%emt 0:00:36]} 9. O-O {[%emt 0:01:10]} O-O {[%emt 0:00:16]} 10. Bg5 {[%emt 0:02:55]} Be7 {[%emt 0:01:20]} 11. Nc3 {[%emt 0:01:19]} Nbd7 {[%emt 0:01:43]} 12. Qe2 {[%emt 0:03:18]} h6 {[%emt 0:05:20]} 13. Bh4 {[%emt 0:03:14]} Nh5 {[%emt 0:03:32]} 14. Bxe7 {[%emt 0:02:41]} Qxe7 {[%emt 0:00:13]} 15. Qe4 {[%emt 0:07:05]} f5 {[%emt 0:04:44]} 16. Qh4 {[%emt 0:06:29]} Qxh4 {[%emt 0:02:20]} 17. Nxh4 {[%emt 0:01:26]} Ne5 {[%emt 0:01:37]} 18. Rfd1 {[%emt 0:08:53]} g5 {[%emt 0:09:43]} 19. Nf3 {[%emt 0:02:55]} Nxf3+ {[%emt 0:00:07]} 20. gxf3 {[%emt 0:00:06]} b6 {[%emt 0:00:12]} 21. Nb5 {[%emt 0:03:32]} Nf4 {[%emt 0:02:34]} 22. Bf1 {[%emt 0:05:26]} a6 {[%emt 0:02:19]} 23. Nd6 {[%emt 0:05:20]} Rd8 {[%emt 0:03:38]} 24. Rac1 {[%emt 0:06:19]} Rb8 {[%emt 0:00:57]} 25. c5 {[%emt 0:02:36]} bxc5 {[%emt 0:00:50]} 26. Rxc5 {[%emt 0:00:05]} Bb7 {[%emt 0:00:34]} 27. b4 {[%emt 0:04:52]} Bxf3 {[%emt 0:03:10]} 28. Rd4 {[%emt 0:00:03]} Bd5 {[%emt 0:00:20]} 0-1

[Event "WSCC 50 Women 2017"]
[Site "?"]
[Date "2017.11.17"]
[Round "8"]
[White "Makropoulou, Marina"]
[Black "Berend, Elvira"]
[Result "1-0"]
[ECO "B46"]
[WhiteElo "2146"]
[BlackElo "2292"]
[PlyCount "117"]
[EventDate "2017.??.??"]
[EventType "swiss"]
[EventCountry "ITA"]
[SourceTitle "Acqui Terme"]
[TimeControl "40/5400+30:1800+30"]
[WhiteClock "0:24:15"]
[BlackClock "0:04:30"]

1. e4 {[%emt 0:00:00]} c5 {[%emt 0:00:08]} 2. Nf3 {[%emt 0:00:00]} e6 {[%emt 0:00:10]} 3. d4 {[%emt 0:00:00]} cxd4 {[%emt 0:00:07]} 4. Nxd4 {[%emt 0:00:00]} Nc6 {[%emt 0:00:09]} 5. Nc3 {[%emt 0:00:10]} a6 {[%emt 0:00:11]} 6. Nxc6 {[%emt 0:00:36]} bxc6 {[%emt 0:00:10]} 7. Bd3 {[%emt 0:00:05]} d5 {[%emt 0:00:10]} 8. O-O {[%emt 0:00:22]} Nf6 {[%emt 0:00:08]} 9. Qf3 {[%emt 0:01:28]} Be7 {[%emt 0:08:23]} 10. Qg3 {[%emt 0:00:36]} O-O {[%emt 0:11:35]} 11. Bh6 {[%emt 0:00:26]} Ne8 {[%emt 0:00:06]} 12. Bf4 {[%emt 0:00:18]} Bh4 {[%emt 0:02:03]} 13. Qf3 {[%emt 0:02:03]} Bg5 {[%emt 0:01:42]} 14. Rfe1 {[%emt 0:05:45]} Bxf4 {[%emt 0:03:03]} 15. Qxf4 {[%emt 0:00:04]} Nf6 {[%emt 0:08:28]} 16. Rad1 {[%emt 0:06:34]} a5 17. Ne2 {[%emt 0:23:58]} dxe4 {[%emt 0:07:40]} 18. Bxe4 {[%emt 0:00:36]} Qb6 {[%emt 0:00:06]} 19. b3 {[%emt 0:03:00]} a4 {[%emt 0:04:39]} 20. Qf3 {[%emt 0:03:15]} axb3 {[%emt 0:05:51]} 21. axb3 {[%emt 0:00:01]} Nxe4 {[%emt 0:00:16]} 22. Qxe4 {[%emt 0:00:05]} Bb7 {[%emt 0:00:24]} 23. Nf4 {[%emt 0:03:03]} c5 {[%emt 0:02:54]} 24. Qe5 {[%emt 0:01:59]} Bc8 {[%emt 0:12:19]} 25. h3 {[%emt 0:10:05]} Ra7 {[%emt 0:03:44]} 26. Rd6 {[%emt 0:01:43]} Qc7 {[%emt 0:01:13]} 27. Red1 {[%emt 0:06:31]} Rb7 {[%emt 0:03:47]} 28. Nd3 {[%emt 0:02:47]} c4 {[%emt 0:00:46]} 29. Nc5 {[%emt 0:00:54]} Qa5 {[%emt 0:10:35]} 30. Ra1 {[%emt 0:06:06]} Qb5 {[%emt 0:01:34]} 31. bxc4 {[%emt 0:01:50]} Qb2 {[%emt 0:02:54]} 32. Qxb2 {[%emt 0:00:14]} Rxb2 {[%emt 0:00:05]} 33. Ra8 {[%emt 0:00:21]} e5 {[%emt 0:00:39]} 34. Nd3 {[%emt 0:10:49]} Rxc2 {[%emt 0:04:36]} 35. Nxe5 {[%emt 0:00:21]} f6 {[%emt 0:01:50]} 36. Rc6 {[%emt 0:05:00]} fxe5 {[%emt 0:03:58]} 37. Rcxc8 {[%emt 0:00:24]} Rxc8 {[%emt 0:00:49]} 38. Rxc8+ {[%emt 0:00:02]} Kf7 {[%emt 0:00:05]} 39. Rc7+ {[%emt 0:02:09]} Kf6 {[%emt 0:00:04]} 40. c5 {[%emt 0:01:14]} Rc1+ {[%emt 0:30:33]} 41. Kh2 {[%emt 0:30:04]} e4 {[%emt 0:00:26]} 42. c6 {[%emt 0:01:36]} h5 {[%emt 0:01:52]} 43. h4 {[%emt 0:01:11]} Rc3 {[%emt 0:00:00]} 44. Rc8 {[%emt 0:00:00]} Kf5 {[%emt 0:00:00]} 45. c7 {[%emt 0:00:00]} Kg6 {[%emt 0:00:00]} 46. g3 {[%emt 0:00:00]} Rc2 {[%emt 0:00:00]} 47. Kg1 {[%emt 0:00:00]} Rc1+ {[%emt 0:00:00]} 48. Kg2 {[%emt 0:00:00]} Kf7 {[%emt 0:00:00]} 49. g4 {[%emt 0:00:00]} hxg4 {[%emt 0:00:00]} 50. Kg3 {[%emt 0:00:00]} Ke6 {[%emt 0:02:43]} 51. Re8+ {[%emt 0:00:00]} Kd7 {[%emt 0:00:04]} 52. c8=Q+ {[%emt 0:00:00]} Rxc8 {[%emt 0:00:05]} 53. Rxc8 {[%emt 0:00:00]} Kxc8 {[%emt 0:00:03]} 54. Kxg4 {[%emt 0:00:00]} Kd7 {[%emt 0:00:03]} 55. Kf5 {[%emt 0:00:00]} Ke7 {[%emt 0:00:04]} 56. Kxe4 {[%emt 0:00:00]} Kf6 {[%emt 0:00:14]} 57. Kf4 {[%emt 0:00:00]} Kg6 {[%emt 0:01:07]} 58. Kg4 {[%emt 0:00:00]} Kh6 {[%emt 0:00:25]} 59. h5 {[%emt 0:00:00]} 1-0

[Event "WSCC 50 Women 2017"]
[Site "?"]
[Date "2017.11.17"]
[Round "8"]
[White "Liu, Shilan"]
[Black "Burchardt, Brigitte"]
[Result "0-1"]
[ECO "B92"]
[WhiteElo "2054"]
[BlackElo "2173"]
[PlyCount "88"]
[EventDate "2017.??.??"]
[EventType "swiss"]
[EventCountry "ITA"]
[SourceTitle "Acqui Terme"]
[TimeControl "40/5400+30:1800+30"]

1. e4 c5 2. Nf3 d6 3. d4 cxd4 4. Nxd4 Nf6 5. Nc3 a6 6. Be2 e5 7. Nf3 Be7 8. Bg5 Nbd7 9. Nd2 O-O 10. a4 Nc5 11. Bxf6 Bxf6 12. Nc4 Be7 13. b4 Nxe4 14. Nd5 Be6 15. Ra3 Bxd5 16. Qxd5 Nf6 17. Qd2 d5 18. Nxe5 a5 19. c3 Ne4 20. Qd4 Qd6 21. O-O Bf6 22. f4 Rfe8 23. Kh1 Rxe5 24. fxe5 Bxe5 25. Qg1 Bxh2 26. Qxh2 Ng3+ 27. Qxg3 Qxg3 28. Bf3 Ra6 29. Raa1 g5 30. Rae1 g4 31. Re8+ Kg7 32. Bxd5 Rh6+ 33. Kg1 Qh2+ 34. Kf2 Rf6+ 35. Ke2 Rxf1 36. Kxf1 Qf4+ 37. Ke2 axb4 38. Re4 Qf5 39. c4 b3 40. Kd3 b2 41. Kc2 Qf2+ 42. Kb1 Qd2 43. Rxg4+ Kf8 44. Be4 Qd1+ 0-1

[Event "WSCC 50 Women 2017"]
[Site "?"]
[Date "2017.11.17"]
[Round "8"]
[White "Lauterbach, Ingrid"]
[Black "Strutinskaia, Galina"]
[Result "1/2-1/2"]
[ECO "B31"]
[WhiteElo "2007"]
[BlackElo "2246"]
[PlyCount "28"]
[EventDate "2017.??.??"]
[EventType "swiss"]
[EventCountry "ITA"]
[SourceTitle "Acqui Terme"]
[TimeControl "40/5400+30:1800+30"]
[WhiteClock "0:54:23"]
[BlackClock "1:00:23"]

1. e4 {[%emt 0:00:00]} c5 {[%emt 0:00:05]} 2. Nf3 {[%emt 0:00:00]} Nc6 {[%emt 0:00:36]} 3. Bb5 {[%emt 0:00:17]} g6 {[%emt 0:00:06]} 4. O-O {[%emt 0:00:35]} Bg7 {[%emt 0:00:18]} 5. c3 Nf6 {[%emt 0:01:25]} 6. Re1 {[%emt 0:02:04]} O-O {[%emt 0:07:13]} 7. a4 {[%emt 0:03:11]} d6 {[%emt 0:02:19]} 8. d4 {[%emt 0:10:02]} cxd4 9. cxd4 {[%emt 0:04:49]} Bg4 {[%emt 0:01:22]} 10. Bxc6 {[%emt 0:00:49]} bxc6 {[%emt 0:00:25]} 11. h3 {[%emt 0:00:16]} Bxf3 {[%emt 0:11:57]} 12. Qxf3 {[%emt 0:00:42]} Qb6 {[%emt 0:06:09]} 13. e5 Nd5 {[%emt 0:00:00]} 14. exd6 {[%emt 0:19:52]} exd6 {[%emt 0:05:12]} 1/2-1/2

[Event "WSCC 50 Women 2017"]
[Site "?"]
[Date "2017.11.18"]
[Round "9"]
[White "Strutinskaia, Galina"]
[Black "Makropoulou, Marina"]
[Result "0-1"]
[ECO "D00"]
[WhiteElo "2246"]
[BlackElo "2146"]
[PlyCount "102"]
[EventDate "2017.??.??"]
[EventType "swiss"]
[EventCountry "ITA"]
[SourceTitle "Acqui Terme"]
[TimeControl "40/5400+30:1800+30"]
[WhiteClock "0:51:30"]
[BlackClock "0:02:42"]

1. d4 {[%emt 0:00:00]} d5 {[%emt 0:00:10]} 2. Bf4 {[%emt 0:00:09]} e6 {[%emt 0:02:55]} 3. e3 {[%emt 0:00:46]} Nf6 {[%emt 0:00:33]} 4. Nf3 {[%emt 0:00:40]} Bd6 {[%emt 0:02:46]} 5. Bg3 {[%emt 0:00:31]} Ne4 {[%emt 0:01:27]} 6. Bxd6 {[%emt 0:02:47]} cxd6 {[%emt 0:00:15]} 7. c4 {[%emt 0:02:54]} O-O {[%emt 0:20:25]} 8. Nc3 {[%emt 0:04:33]} Qa5 {[%emt 0:03:56]} 9. Qb3 {[%emt 0:00:39]} dxc4 {[%emt 0:08:02]} 10. Bxc4 {[%emt 0:00:07]} Nc6 {[%emt 0:12:47]} 11. O-O {[%emt 0:03:02]} Nxc3 {[%emt 0:00:04]} 12. Qxc3 {[%emt 0:00:48]} Bd7 {[%emt 0:01:22]} 13. Rac1 {[%emt 0:03:05]} Rac8 {[%emt 0:00:22]} 14. a3 {[%emt 0:01:36]} b5 {[%emt 0:06:52]} 15. Be2 {[%emt 0:05:35]} b4 {[%emt 0:01:09]} 16. axb4 {[%emt 0:03:06]} Nxb4 {[%emt 0:00:14]} 17. Qd2 {[%emt 0:00:28]} Qb6 {[%emt 0:00:39]} 18. Rc3 {[%emt 0:02:00]} a5 {[%emt 0:02:05]} 19. e4 {[%emt 0:01:20]} h6 {[%emt 0:00:14]} 20. Rfc1 {[%emt 0:01:21]} Na2 {[%emt 0:01:12]} 21. Rxc8 {[%emt 0:00:07]} Rxc8 {[%emt 0:00:03]} 22. Rxc8+ {[%emt 0:00:29]} Bxc8 {[%emt 0:00:01]} 23. Bd3 {[%emt 0:02:41]} Bb7 {[%emt 0:04:00]} 24. h4 {[%emt 0:01:03]} Kf8 {[%emt 0:01:59]} 25. Qf4 {[%emt 0:03:52]} Ke7 {[%emt 0:05:23]} 26. Qd2 {[%emt 0:06:02]} Nb4 {[%emt 0:01:29]} 27. Bb1 {[%emt 0:00:15]} Ba6 {[%emt 0:01:58]} 28. Qc3 {[%emt 0:02:48]} Qc6 {[%emt 0:02:02]} 29. Nd2 {[%emt 0:02:10]} Kd7 {[%emt 0:01:22]} 30. f4 {[%emt 0:00:19]} Qb6 {[%emt 0:06:15]} 31. Kh2 {[%emt 0:02:21]} Nc6 {[%emt 0:04:43]} 32. Nf3 {[%emt 0:04:58]} Qb4 {[%emt 0:00:38]} 33. Kg3 Be2 {[%emt 0:04:33]} 34. d5 {[%emt 0:04:20]} exd5 {[%emt 0:03:29]} 35. Qxg7 {[%emt 0:05:03]} Bxf3 {[%emt 0:00:29]} 36. Qxf7+ {[%emt 0:01:08]} Ne7 {[%emt 0:00:41]} 37. Kxf3 {[%emt 0:00:21]} Qb3+ {[%emt 0:01:14]} 38. Kg4 {[%emt 0:01:01]} Qd1+ {[%emt 0:00:12]} 39. Kh3 {[%emt 0:03:23]} Qxb1 {[%emt 0:00:04]} 40. f5 {[%emt 0:00:27]} Qh1+ {[%emt 0:31:28]} 41. Kg3 {[%emt 0:30:18]} Qe1+ {[%emt 0:00:15]} 42. Kh3 {[%emt 0:00:07]} Qxe4 {[%emt 0:00:00]} 43. f6 {[%emt 0:00:00]} d4 {[%emt 0:00:00]} 44. g4 {[%emt 0:00:00]} Qf3+ {[%emt 0:00:00]} 45. Kh2 {[%emt 0:00:00]} Qf4+ {[%emt 0:00:00]} 46. Kh3 {[%emt 0:00:00]} Qe3+ {[%emt 0:00:00]} 47. Kg2 {[%emt 0:00:00]} Qe2+ {[%emt 0:01:43]} 48. Kg3 {[%emt 0:00:00]} Qe5+ {[%emt 0:00:49]} 49. Kf2 {[%emt 0:00:00]} Qh2+ {[%emt 0:00:45]} 50. Kf3 {[%emt 0:00:00]} Qh3+ {[%emt 0:00:07]} 51. Kf4 {[%emt 0:00:00]} Qe3# {[%emt 0:00:07]} 0-1